fUSD/lending_fUSD_20260519
["ID","MTS","AMOUNT","RATE_DAILY","PERIOD"]
[422632227,1779183034000,-500.0,0.00014228,2]
[422632228,1779183034000,-912.0,0.00014228,2]
[422632225,1779183034000,-912.0,0.00014228,2]
[422632226,1779183034000,-912.0,0.00014228,2]
[422632224,1779183034000,-500.0,0.00014228,2]
[422632231,1779183034000,-500.0,0.00014228,2]
[422632230,1779183034000,-500.0,0.00014228,2]
[422632201,1779183034000,-500.0,0.00014227,2]
[422632234,1779183034000,-500.0,0.00014228,2]
[422632233,1779183034000,-500.0,0.00014228,2]
[422632232,1779183034000,-912.0,0.00014228,2]
[422632236,1779183034000,-500.0,0.00014228,2]
[422632240,1779183034000,-912.0,0.00014228,2]
[422632237,1779183034000,-500.0,0.00014228,2]
[422632238,1779183034000,-912.0,0.00014228,2]
[422632235,1779183034000,-500.0,0.00014228,2]
[422632239,1779183034000,-500.0,0.00014228,2]
[422632222,1779183034000,-500.0,0.00014228,2]
[422632223,1779183034000,-912.0,0.00014228,2]
[422632229,1779183034000,-912.0,0.00014228,2]
[422632220,1779183034000,-500.0,0.00014228,2]
[422632221,1779183034000,-912.0,0.00014228,2]
[422632200,1779183034000,-198.13587745,0.00014227,2]
[422632199,1779183034000,-500.0,0.00014227,2]
[422632205,1779183034000,-500.0,0.00014228,2]
[422632206,1779183034000,-500.0,0.00014228,2]
[422632208,1779183034000,-500.0,0.00014228,2]
[422632209,1779183034000,-500.0,0.00014228,2]
[422632207,1779183034000,-500.0,0.00014228,2]
[422632211,1779183034000,-912.0,0.00014228,2]
[422632204,1779183034000,-500.0,0.00014228,2]
[422632212,1779183034000,-912.0,0.00014228,2]
[422632213,1779183034000,-912.0,0.00014228,2]
[422632215,1779183034000,-912.0,0.00014228,2]
[422632214,1779183034000,-500.0,0.00014228,2]
[422632219,1779183034000,-912.0,0.00014228,2]
[422632217,1779183034000,-912.0,0.00014228,2]
[422632216,1779183034000,-500.0,0.00014228,2]
[422632218,1779183034000,-500.0,0.00014228,2]
[422632210,1779183034000,-539.56685334,0.00014228,2]
[422632273,1779183038000,-552.93113016,0.00014268,2]
[422632268,1779183038000,-296.23107109,0.00014267,2]
[422632270,1779183038000,-575.59111792,0.00014267,2]
[422632269,1779183038000,-500.0,0.00014267,2]
[422632271,1779183038000,-1545.72384359,0.00014268,2]
[422632272,1779183038000,-446.26987052,0.00014268,2]
[422632280,1779183038000,-6991.97649297,0.00014268,2]
[422632275,1779183038000,-2621.19849465,0.00014268,2]
[422632276,1779183038000,-778.57293068,0.00014268,2]
[422632277,1779183038000,-571.18927001,0.00014268,2]
[422632278,1779183038000,-503.47737862,0.00014268,2]
[422632279,1779183038000,-827.54373366,0.00014268,2]
[422632281,1779183038000,-1271.92123926,0.00014268,2]
[422632274,1779183038000,-4405.66696543,0.00014268,2]
[422632292,1779183040000,-297.70971045,0.00013954,2]
[422632294,1779183040000,-448692.62465205,0.00014268,2]
[422632293,1779183040000,-500.0,0.00013954,2]
[422632295,1779183040000,-4414.6716168,0.00014268,2]
[422632297,1779183040000,-167.15,0.00014384,2]
[422632299,1779183040000,-214.66,0.00014455,2]
[422632296,1779183040000,-2640.3159364,0.0001427,2]
[422632298,1779183040000,-300.0,0.00014442,2]
[422632302,1779183040000,-620.68,0.00014716,2]
[422632306,1779183040000,-536.10717654,0.000149,2]
[422632305,1779183040000,-200.0,0.0001488,2]
[422632300,1779183040000,-405.02167105,0.00014534,2]
[422632304,1779183040000,-2351.0,0.00014861,2]
[422632303,1779183040000,-500.0,0.00014767,2]
[422632301,1779183040000,-855.0,0.0001464,2]
[422632307,1779183041000,-5000.0,0.000149,2]
[422632308,1779183041000,-405.02167105,0.000149,2]
[422632310,1779183041000,-168.09490066,0.000149,2]
[422632312,1779183041000,-151.0,0.00014997,2]
[422632311,1779183041000,-151.0,0.00014997,2]
[422632313,1779183041000,-500.0,0.00014999,2]
[422632315,1779183041000,-518.50412553,0.00014999,2]
[422632316,1779183041000,-500.0,0.00014999,2]
[422632314,1779183041000,-500.0,0.00014999,2]
[422632318,1779183041000,-517.71281634,0.00014999,2]
[422632319,1779183041000,-500.0,0.00014999,2]
[422632321,1779183041000,-500.0,0.00014999,2]
[422632320,1779183041000,-501.91072122,0.00014999,2]
[422632309,1779183041000,-1663.28498923,0.000149,2]
[422632322,1779183041000,-500.0,0.00014999,2]
[422632324,1779183041000,-500.0,0.00014999,2]
[422632337,1779183041000,-1783987.36089856,0.00015,2]
[422632335,1779183041000,-2983.0,0.00015,5]
[422632336,1779183041000,-2968.0,0.00015,5]
[422632334,1779183041000,-213.64523923,0.00014999,2]
[422632331,1779183041000,-500.0,0.00014999,2]
[422632332,1779183041000,-500.0,0.00014999,2]
[422632317,1779183041000,-500.0,0.00014999,2]
[422632330,1779183041000,-504.19636444,0.00014999,2]
[422632329,1779183041000,-500.0,0.00014999,2]
[422632328,1779183041000,-500.0,0.00014999,2]
[422632326,1779183041000,-349.78123329,0.00014999,2]
[422632323,1779183041000,-500.0,0.00014999,2]
[422632325,1779183041000,-500.0,0.00014999,2]
[422632327,1779183041000,-500.0,0.00014999,2]
[422632348,1779183050000,-286.2157585,0.000139,2]
[422632349,1779183050000,-7521.88673891,0.000139,2]
[422632350,1779183050000,-1421.62862824,0.000139,2]
[422632352,1779183050000,-492.98298303,0.00015,2]
[422632351,1779183050000,-2127.13342759,0.00015,2]
[422632353,1779183050000,-576.47645733,0.00015,2]
[422632354,1779183050000,-511.63701206,0.00015,2]
[422632355,1779183050000,-772.50505751,0.00015,2]
[422632356,1779183050000,-381.23466672,0.00015,2]
[422632358,1779183050000,-730.48049219,0.00015,2]
[422632359,1779183050000,-2193.31730551,0.00015,2]
[422632360,1779183050000,-366.69020406,0.00015,2]
[422632361,1779183050000,-3207.4139,0.00015,2]
[422632363,1779183050000,-10584.35291694,0.00015,2]
[422632362,1779183050000,-9337.82413837,0.00015,2]
[422632364,1779183050000,-409.53,0.00015,2]
[422632369,1779183050000,-31868.85032922,0.00015,2]
[422632357,1779183050000,-344.36249924,0.00015,2]
[422632366,1779183050000,-456.92043422,0.00015,2]
[422632394,1779183111000,-598.5031,0.00013955,2]
[422632396,1779183361000,-1200.0,0.0001386,2]
[422632397,1779183425000,159.68408938,0.00029631,120]
[422632399,1779183551000,-214.9235469,0.00013761,2]
[422632400,1779183732000,151.74,7.224e-05,2]
[422632404,1779183733000,151.74,9.748e-05,2]
[422632403,1779183733000,151.74,9.117e-05,2]
[422632402,1779183733000,151.74,8.486e-05,2]
[422632401,1779183733000,151.74,7.855e-05,2]
[422632406,1779183800000,-151.74,0.00010379,2]
[422632408,1779184048000,-250.0,0.00010695,2]
[422632409,1779184140000,1000.0,0.00030133,120]
[422632458,1779184239000,-147.49227643,0.00012839,2]
[422632459,1779184239000,-102.50772357,0.00012877,2]
[422632457,1779184239000,-188.71346657,0.00012839,2]
[422632455,1779184239000,-240.29342229,0.0001274,2]
[422632451,1779184239000,-250.0,0.00012111,2]
[422632452,1779184239000,-151.74,0.00012272,2]
[422632453,1779184239000,-266.08436745,0.00012658,2]
[422632450,1779184239000,-151.74,0.00011641,2]
[422632460,1779184239000,-264.00221638,0.00012877,2]
[422632449,1779184239000,-151.74,0.0001101,2]
[422632456,1779184239000,-259.70657771,0.0001274,2]
[422632461,1779184239000,-133.49006005,0.00012877,2]
[422632454,1779184239000,-233.91563255,0.00012658,2]
[422632464,1779184239000,-500.0,0.00013425,2]
[422632474,1779184239000,-138772.98892781,0.00013855,2]
[422632473,1779184239000,-2500.0,0.00013855,2]
[422632471,1779184239000,-200.0,0.00013699,2]
[422632470,1779184239000,-772.41,0.00013667,2]
[422632467,1779184239000,-1200.0,0.00013463,2]
[422632472,1779184239000,-166.66,0.00013699,2]
[422632465,1779184239000,-1200.0,0.00013463,2]
[422632468,1779184239000,-15506.07,0.00013464,2]
[422632469,1779184239000,-151.74,0.00013534,2]
[422632463,1779184239000,-500.0,0.00013014,2]
[422632466,1779184239000,-300.0,0.00013463,2]
[422632462,1779184239000,-151.74,0.00012903,2]
[422632476,1779184240000,-392.44,0.00013855,2]
[422632477,1779184240000,-329.16,0.00013855,2]
[422632475,1779184240000,-167.09,0.00013647,2]
[422632481,1779184241000,-4772.23006123,0.00013855,2]
[422632482,1779184241000,-57200.1628539,0.00013855,2]
[422632484,1779184241000,-5403.02595677,0.00013855,2]
[422632483,1779184241000,-1499.83754391,0.00013855,2]
[422632500,1779184242000,-192.34,0.0001387,2]
[422632492,1779184242000,-550.0,0.00013854,2]
[422632490,1779184242000,-500.0,0.00013854,2]
[422632491,1779184242000,-500.0,0.00013854,2]
[422632493,1779184242000,-500.0,0.00013854,2]
[422632495,1779184242000,-500.0,0.00013854,2]
[422632494,1779184242000,-500.0,0.00013854,2]
[422632497,1779184242000,-500.0,0.00013854,2]
[422632498,1779184242000,-500.0,0.00013854,2]
[422632496,1779184242000,-500.0,0.00013854,2]
[422632499,1779184242000,-259970.19625638,0.00013855,2]
[422632501,1779184242000,-150.0,0.0001391,2]
[422632503,1779184242000,-10773.5831509,0.00013911,2]
[422632508,1779184242000,-5000.0,0.0001477,2]
[422632504,1779184242000,-250.0,0.00014,2]
[422632515,1779184242000,-10579.18267682,0.0001487,2]
[422632512,1779184242000,-191.8913675,0.0001487,2]
[422632513,1779184242000,-112628.44569222,0.0001487,2]
[422632514,1779184242000,-565.01789331,0.0001487,2]
[422632511,1779184242000,-1680.0,0.0001481,2]
[422632502,1779184242000,-2608.47743512,0.00013911,2]
[422632505,1779184242000,-151.74,0.00014165,2]
[422632516,1779184242000,-673.3,0.0001487,2]
[422632507,1779184242000,-420.0,0.00014758,2]
[422632506,1779184242000,-1321.0,0.00014758,2]
[422632510,1779184242000,-250.0,0.00014801,2]
[422632509,1779184242000,-9092.59741906,0.000148,2]
[422632517,1779184243000,-2654.39259272,0.0001487,2]
[422632526,1779184245000,-7560.78717971,0.0001487,2]
[422632527,1779184245000,-264.025,0.0001487,2]
[422632528,1779184245000,-613.39304674,0.0001487,2]
[422632529,1779184245000,-6915.53967521,0.0001487,2]
[422632532,1779184246000,-1893.12,0.0001487,2]
[422632533,1779184246000,-505.0,0.0001487,2]
[422632531,1779184246000,-572.01969778,0.0001487,2]
[422632530,1779184246000,-8403.51793068,0.0001487,2]
[422632537,1779184488000,-3388.8178875,0.00013755,2]
[422632539,1779184665000,-214.9235469,0.00013754,2]
[422632540,1779184912000,-645.38551449,0.000114,2]
[422632543,1779185032000,205.0,9.8e-05,2]
[422632544,1779185109000,487.04850407,0.0001,2]
[422632546,1779185121000,76.06423849,0.0001,2]
[422632545,1779185121000,1173.38149593,0.0001,2]
[422632549,1779185141000,150.0,0.0001,2]
[422632550,1779185159000,-3388.8178875,0.00013,5]
[422632551,1779185269000,-3388.8178875,0.00013,5]
[422632556,1779185288000,3504.729332,7.945e-05,2]
[422632558,1779185341000,1000.0,0.00030132,120]
[422632559,1779185348000,628.438762,7.945e-05,2]
[422632560,1779185364000,162.48,0.00030137,120]
[422632561,1779185378000,-498.89,0.0001059,2]
[422632579,1779185431000,-150.0,0.00013488,2]
[422632577,1779185431000,-967.43531133,0.00013487,2]
[422632572,1779185431000,-258.0524879,0.00013415,2]
[422632574,1779185431000,-585.07814379,0.00013486,2]
[422632575,1779185431000,-21.73791134,0.00013486,2]
[422632576,1779185431000,-232.56468867,0.00013487,2]
[422632573,1779185431000,-593.18394487,0.00013486,2]
[422632568,1779185431000,-1045.3676877,0.00013,5]
[422632571,1779185431000,-562.6575121,0.00013415,2]
[422632570,1779185431000,-820.71,0.00013088,2]
[422632581,1779185431000,-151.300204,0.00013488,2]
[422632567,1779185431000,-134.10366398,0.00013,5]
[422632565,1779185431000,-208.58623393,0.00011013,2]
[422632566,1779185431000,-250.0,0.0001177,2]
[422632563,1779185431000,-271.27083774,0.000107,2]
[422632564,1779185431000,-586.03926435,0.00011,2]
[422632569,1779185431000,-560.48,0.00013054,2]
[422632578,1779185431000,-150.0,0.00013488,2]
[422632583,1779185431000,-150.0,0.00013488,2]
[422632582,1779185431000,-150.0,0.00013488,2]
[422632580,1779185431000,-150.65153186,0.00013488,2]
[422632601,1779185431000,-150.0,0.00013862,2]
[422632599,1779185431000,-150.0,0.00013821,2]
[422632594,1779185431000,-360.54032943,0.00013754,2]
[422632596,1779185431000,-150.0,0.00013787,2]
[422632593,1779185431000,-820.71,0.00013742,2]
[422632595,1779185431000,-150.0,0.00013787,2]
[422632592,1779185431000,-200.0,0.00013699,2]
[422632598,1779185431000,-150.0,0.00013787,2]
[422632591,1779185431000,-150.0,0.00013654,2]
[422632589,1779185431000,-150.0,0.00013488,2]
[422632588,1779185431000,-150.0,0.00013488,2]
[422632586,1779185431000,-150.0,0.00013488,2]
[422632587,1779185431000,-150.0,0.00013488,2]
[422632585,1779185431000,-150.0,0.00013488,2]
[422632590,1779185431000,-1788.03,0.00013602,2]
[422632584,1779185431000,-150.0,0.00013488,2]
[422632617,1779185432000,-11032.59978353,0.00014113,2]
[422632619,1779185432000,-4309.04873572,0.00014173,2]
[422632621,1779185432000,-191.8913676,0.00014181,2]
[422632620,1779185432000,-9387.52948309,0.00014175,2]
[422632623,1779185432000,-500.0,0.00014181,2]
[422632622,1779185432000,-628.99909967,0.00014181,2]
[422632626,1779185432000,-500.0,0.00014181,2]
[422632625,1779185432000,-500.0,0.00014181,2]
[422632627,1779185432000,-475.0,0.00014181,2]
[422632628,1779185432000,-500.0,0.00014181,2]
[422632630,1779185432000,-500.0,0.00014181,2]
[422632615,1779185432000,-150.0,0.00014087,2]
[422632624,1779185432000,-500.0,0.00014181,2]
[422632618,1779185432000,-150.0,0.00014154,2]
[422632604,1779185432000,-150.0,0.00013987,2]
[422632614,1779185432000,-150.0,0.00014087,2]
[422632613,1779185432000,-9387.52948315,0.00014084,2]
[422632611,1779185432000,-297766.69348762,0.00014082,2]
[422632612,1779185432000,-4309.04873576,0.00014082,2]
[422632610,1779185432000,-107705.88401238,0.00014082,2]
[422632609,1779185432000,-598.5031,0.00014082,2]
[422632608,1779185432000,-150.0,0.00014081,2]
[422632606,1779185432000,-150.0,0.00013987,2]
[422632607,1779185432000,-820.71,0.00014069,2]
[422632605,1779185432000,-150.0,0.00013987,2]
[422632603,1779185432000,-150.0,0.00013987,2]
[422632602,1779185432000,-11032.59978357,0.00013982,2]
[422632634,1779185432000,-500.0,0.00014181,2]
[422632616,1779185432000,-150.0,0.00014087,2]
[422632633,1779185432000,-500.0,0.00014181,2]
[422632638,1779185432000,-500.0,0.00014181,2]
[422632631,1779185432000,-500.0,0.00014181,2]
[422632632,1779185432000,-500.0,0.00014181,2]
[422632663,1779185432000,-50.19622569,0.00014181,2]
[422632658,1779185432000,-500.0,0.00014181,2]
[422632661,1779185432000,-500.0,0.00014181,2]
[422632659,1779185432000,-220.91829636,0.00014181,2]
[422632660,1779185432000,-279.08170364,0.00014181,2]
[422632657,1779185432000,-500.0,0.00014181,2]
[422632652,1779185432000,-500.0,0.00014181,2]
[422632654,1779185432000,-500.0,0.00014181,2]
[422632655,1779185432000,-500.0,0.00014181,2]
[422632653,1779185432000,-500.0,0.00014181,2]
[422632656,1779185432000,-500.0,0.00014181,2]
[422632651,1779185432000,-500.0,0.00014181,2]
[422632650,1779185432000,-500.0,0.00014181,2]
[422632649,1779185432000,-500.0,0.00014181,2]
[422632640,1779185432000,-500.0,0.00014181,2]
[422632647,1779185432000,-500.0,0.00014181,2]
[422632645,1779185432000,-500.0,0.00014181,2]
[422632646,1779185432000,-500.0,0.00014181,2]
[422632644,1779185432000,-500.0,0.00014181,2]
[422632642,1779185432000,-500.0,0.00014181,2]
[422632643,1779185432000,-500.0,0.00014181,2]
[422632641,1779185432000,-500.0,0.00014181,2]
[422632648,1779185432000,-572.52845429,0.00014181,2]
[422632639,1779185432000,-500.0,0.00014181,2]
[422632637,1779185432000,-500.0,0.00014181,2]
[422632662,1779185432000,-425.14015744,0.00014181,2]
[422632635,1779185432000,-500.0,0.00014181,2]
[422632636,1779185432000,-500.0,0.00014181,2]
[422632629,1779185432000,-500.0,0.00014181,2]
[422632669,1779185437000,-500.0,0.00014181,2]
[422632667,1779185437000,-449.80377431,0.00014181,2]
[422632668,1779185437000,-500.0,0.00014181,2]
[422632672,1779185437000,-451.89950766,0.00014181,2]
[422632671,1779185437000,-500.0,0.00014181,2]
[422632670,1779185437000,-425.14015744,0.00014181,2]
[422632701,1779185438000,-425.14015744,0.00014181,2]
[422632703,1779185438000,-500.0,0.00014181,2]
[422632706,1779185438000,-500.0,0.00014181,2]
[422632705,1779185438000,-425.14015744,0.00014181,2]
[422632704,1779185438000,-500.0,0.00014181,2]
[422632710,1779185438000,-500.0,0.00014181,2]
[422632708,1779185438000,-500.0,0.00014181,2]
[422632713,1779185438000,-425.14015744,0.00014181,2]
[422632715,1779185438000,-313449.8866549,0.00014182,2]
[422632725,1779185438000,-150.0,0.00014237,2]
[422632730,1779185438000,-11032.59978353,0.00014244,2]
[422632728,1779185438000,-150.0,0.00014237,2]
[422632717,1779185438000,-4549.3470337,0.00014182,2]
[422632723,1779185438000,-500.0,0.00014213,2]
[422632721,1779185438000,-3311.0037126,0.00014184,2]
[422632737,1779185438000,-150.0,0.0001432,2]
[422632739,1779185438000,-1199.93442618,0.00014347,2]
[422632735,1779185438000,-9387.52948309,0.00014265,2]
[422632741,1779185438000,-4309.04873572,0.00014355,2]
[422632752,1779185438000,-150.0,0.00014387,2]
[422632744,1779185438000,-9387.52948309,0.00014356,2]
[422632750,1779185438000,-150.0,0.00014387,2]
[422632757,1779185438000,-820.71,0.00014397,2]
[422632702,1779185438000,-500.0,0.00014181,2]
[422632732,1779185438000,-4309.04873572,0.00014264,2]
[422632700,1779185438000,-500.0,0.00014181,2]
[422632683,1779185438000,-500.0,0.00014181,2]
[422632698,1779185438000,-500.0,0.00014181,2]
[422632673,1779185438000,-48.10049234,0.00014181,2]
[422632676,1779185438000,-500.0,0.00014181,2]
[422632674,1779185438000,-500.0,0.00014181,2]
[422632675,1779185438000,-425.14015744,0.00014181,2]
[422632681,1779185438000,-500.0,0.00014181,2]
[422632678,1779185438000,-500.0,0.00014181,2]
[422632679,1779185438000,-425.14015744,0.00014181,2]
[422632677,1779185438000,-500.0,0.00014181,2]
[422632680,1779185438000,-500.0,0.00014181,2]
[422632748,1779185438000,-11032.59978353,0.00014375,2]
[422632682,1779185438000,-425.14015744,0.00014181,2]
[422632684,1779185438000,-500.0,0.00014181,2]
[422632685,1779185438000,-500.0,0.00014181,2]
[422632694,1779185438000,-500.0,0.00014181,2]
[422632686,1779185438000,-500.0,0.00014181,2]
[422632689,1779185438000,-500.0,0.00014181,2]
[422632688,1779185438000,-500.0,0.00014181,2]
[422632693,1779185438000,-500.0,0.00014181,2]
[422632687,1779185438000,-425.14015744,0.00014181,2]
[422632691,1779185438000,-425.14015744,0.00014181,2]
[422632692,1779185438000,-500.0,0.00014181,2]
[422632690,1779185438000,-500.0,0.00014181,2]
[422632696,1779185438000,-165.0,0.00014181,2]
[422632695,1779185438000,-425.14015744,0.00014181,2]
[422632697,1779185438000,-165.0,0.00014181,2]
[422632699,1779185438000,-500.0,0.00014181,2]
[422632755,1779185438000,-150.0,0.00014387,2]
[422632719,1779185438000,-2547.6505245,0.00014184,2]
[422632759,1779185438000,-176.6,0.00014429,2]
[422632836,1779185438000,-150.0,0.00014687,2]
[422632832,1779185438000,-150.0,0.00014653,2]
[422632838,1779185438000,-150.0,0.00014687,2]
[422632840,1779185438000,-150.0,0.00014687,2]
[422632834,1779185438000,-500.0,0.00014686,2]
[422632842,1779185438000,-4309.04873572,0.00014718,2]
[422632844,1779185438000,-9387.52948309,0.00014719,2]
[422632847,1779185438000,-11032.59978353,0.00014769,2]
[422632849,1779185438000,-2886.5336,0.0001477,2]
[422632853,1779185438000,-2000.0,0.0001477,2]
[422632855,1779185438000,-1151.0,0.00014783,2]
[422632859,1779185438000,-9387.52948309,0.00014809,2]
[422632851,1779185438000,-16227.9761,0.0001477,2]
[422632863,1779185438000,-824.0,0.00014835,2]
[422632861,1779185438000,-150.0,0.0001482,2]
[422632866,1779185438000,-510.83473575,0.00014869,2]
[422632868,1779185438000,-349.78123329,0.00014869,2]
[422632870,1779185438000,-500.0,0.00014869,2]
[422632872,1779185438000,-500.0,0.00014869,2]
[422632877,1779185438000,-501.91072122,0.00014869,2]
[422632881,1779185438000,-500.0,0.00014869,2]
[422632885,1779185438000,-151.0,0.0001487,2]
[422632879,1779185438000,-500.0,0.00014869,2]
[422632883,1779185438000,-629.80079628,0.0001487,2]
[422632746,1779185438000,-165.0,0.00014356,2]
[422632830,1779185438000,-11032.59978353,0.00014638,2]
[422632824,1779185438000,-500.62055786,0.00014629,2]
[422632857,1779185438000,-4309.04873572,0.00014809,2]
[422632826,1779185438000,-150.0,0.00014629,2]
[422632761,1779185438000,-4309.04873572,0.00014446,2]
[422632828,1779185438000,-150.74815113,0.00014629,2]
[422632763,1779185438000,-9387.52948309,0.00014447,2]
[422632766,1779185438000,-150.0,0.00014487,2]
[422632775,1779185438000,-150.0,0.00014487,2]
[422632778,1779185438000,-11032.59978353,0.00014507,2]
[422632781,1779185438000,-4309.04873572,0.00014536,2]
[422632783,1779185438000,-9387.52948309,0.00014537,2]
[422632769,1779185438000,-150.0,0.00014487,2]
[422632786,1779185438000,-150.0,0.00014612,2]
[422632788,1779185438000,-116642.31,0.00014615,2]
[422632791,1779185438000,-536.10717654,0.00014619,2]
[422632793,1779185438000,-1199.93442617,0.00014624,2]
[422632772,1779185438000,-150.0,0.00014487,2]
[422632813,1779185438000,-177.01992321,0.00014629,2]
[422632800,1779185438000,-500.0,0.00014629,2]
[422632798,1779185438000,-9387.52948309,0.00014628,2]
[422632808,1779185438000,-500.0,0.00014629,2]
[422632806,1779185438000,-275.90692005,0.00014629,2]
[422632811,1779185438000,-500.0,0.00014629,2]
[422632804,1779185438000,-573.96247089,0.00014629,2]
[422632802,1779185438000,-500.0,0.00014629,2]
[422632815,1779185438000,-441.19250183,0.00014629,2]
[422632817,1779185438000,-500.0,0.00014629,2]
[422632795,1779185438000,-4309.04873572,0.00014627,2]
[422632821,1779185438000,-500.0,0.00014629,2]
[422632819,1779185438000,-557.62726141,0.00014629,2]
[422632962,1779185439000,-264.52740707,0.00015231,21]
[422632948,1779185439000,-300.0,0.00014999,2]
[422632954,1779185439000,-11456091.60553634,0.00015,2]
[422632964,1779185439000,-232.44373355,0.00015272,21]
[422632959,1779185439000,-225.4,0.00015068,2]
[422632947,1779185439000,-692.46000937,0.00014999,2]
[422632944,1779185439000,-300.0,0.00014999,2]
[422632960,1779185439000,-255.0,0.00015207,2]
[422632950,1779185439000,-666.0,0.00014999,2]
[422632956,1779185439000,-156.9,0.00015,2]
[422632966,1779185439000,-948.69,0.00015276,2]
[422632952,1779185439000,-300.0,0.00014999,2]
[422632968,1779185439000,-166.66,0.00015331,2]
[422633001,1779185439000,-150.0,0.00015577,2]
[422632972,1779185439000,-500.0,0.00015577,2]
[422632982,1779185439000,-500.0,0.00015577,2]
[422632974,1779185439000,-354.74373799,0.00015577,2]
[422632978,1779185439000,-500.0,0.00015577,2]
[422632984,1779185439000,-500.0,0.00015577,2]
[422632980,1779185439000,-500.0,0.00015577,2]
[422632990,1779185439000,-515.72234033,0.00015577,2]
[422632976,1779185439000,-500.0,0.00015577,2]
[422632986,1779185439000,-500.0,0.00015577,2]
[422632988,1779185439000,-506.44330256,0.00015577,2]
[422632997,1779185439000,-150.0,0.00015577,2]
[422633003,1779185439000,-150.0,0.00015577,2]
[422632943,1779185439000,-837.78851962,0.0001499,2]
[422632970,1779185439000,-500.0,0.00015577,2]
[422632941,1779185439000,-837.78851962,0.0001499,2]
[422632890,1779185439000,-200.0,0.0001488,2]
[422632923,1779185439000,-152.60139806,0.00014986,2]
[422632894,1779185439000,-25000.0,0.00014882,3]
[422632888,1779185439000,-25000.0,0.00014874,3]
[422632892,1779185439000,-837.78851962,0.00014881,2]
[422632898,1779185439000,-5676.58636403,0.000149,3]
[422632896,1779185439000,-25000.0,0.00014891,3]
[422632902,1779185439000,-9387.52948309,0.000149,2]
[422632906,1779185439000,-4309.04873572,0.000149,2]
[422633013,1779185439000,-166.66,0.00015851,2]
[422632912,1779185439000,-290.93114458,0.00014908,2]
[422632913,1779185439000,-176.24,0.00014931,2]
[422632909,1779185439000,-8746.01898772,0.000149,2]
[422632900,1779185439000,-5000.0,0.000149,2]
[422632904,1779185439000,-25000.0,0.000149,3]
[422632908,1779185439000,-1199.93442617,0.000149,2]
[422632910,1779185439000,-319.23106836,0.000149,2]
[422632911,1779185439000,-11032.59978353,0.000149,2]
[422632915,1779185439000,-189.42,0.00014951,2]
[422632917,1779185439000,-617.92,0.00014983,2]
[422632919,1779185439000,-284.58525916,0.00014986,2]
[422632921,1779185439000,-254.67783396,0.00014986,2]
[422632931,1779185439000,-150.00000001,0.00014986,2]
[422632925,1779185439000,-152.35107502,0.00014986,2]
[422632937,1779185439000,-153.99235667,0.00014986,2]
[422632929,1779185439000,-8633.0,0.00014986,2]
[422632927,1779185439000,-229.00156449,0.00014986,2]
[422632933,1779185439000,-152.75252403,0.00014986,2]
[422632935,1779185439000,-225.67224447,0.00014986,2]
[422632939,1779185439000,-170.41262241,0.00014986,2]
[422633009,1779185439000,-535.59562921,0.00015577,2]
[422633102,1779185439000,-151.0,0.00017352,2]
[422632999,1779185439000,-150.0,0.00015577,2]
[422633078,1779185439000,-2005.9555727,0.00017352,2]
[422633070,1779185439000,-500.0,0.00017352,2]
[422633082,1779185439000,-151.0,0.00017352,2]
[422633087,1779185439000,-151.0,0.00017352,2]
[422633084,1779185439000,-151.0,0.00017352,2]
[422633080,1779185439000,-151.0,0.00017352,2]